Cogmind - Beta 11.1 @@@ ROGUE MODE // 2022.05.01 @ 00:47:42 Player: Olga Result: Destroyed by S-27 Virus with Autogun Performance ------------- Evolutions (4) 2000 Regions Visited (9) 1800 Robots Destroyed (12) 60 Value Destroyed (525) 525 Prototype IDs (24) 480 Alien Tech Used (0) 0 Bonus (742) 742 TOTAL SCORE: 5607 Bonus ------- High Alert Combat Kills 13 Follower Combat Kills 429 Aligned with FarCom 300 Cogmind --------- Core Integrity 0/850 Matter 248/300 Energy 99/100 System Corruption 1% Temperature Cool (0) Movement Core (50) Location -6/Cetus Parts ------- > --- POWER (1) -------- (None) > --- PROPULSION (5) --- (None) > --- UTILITY (7) ------ Advanced Visual Processing Unit Hacking Suite > --- WEAPON (2) ------- (None) > --- INVENTORY (5) ---- PSU Rigger Peak State ------------ > --- POWER ------------ Light Nuclear Core > --- PROPULSION ------- Flight Unit Flight Unit Cesium-ion Thruster Cesium-ion Thruster Cesium-ion Thruster > --- UTILITY ---------- Power Amplifier Medium Storage Unit Advanced Visual Processing Unit Hacking Suite Hacking Suite Bomb Drone Bay > --- WEAPON ----------- Powered Hammer > --- INVENTORY -------- Angular Momentum Engine Advanced Heat Sink Cloaking Device Improved Light Armor Plating Improved Light Armor Plating PSU Rigger Minigun Heavy Missile Launcher [Rating: 50] Favorites ----------- Power Light Nuclear Core Engine Light Ion Engine Power Core Light Nuclear Core Propulsion Flight Unit Treads Light Treads Leg Aluminum Leg Flight Unit Flight Unit Utility Hacking Suite Device Power Amplifier Storage Medium Storage Unit Processor Advanced Visual Processing Unit Hackware Hacking Suite Protection Improved Light Armor Plating Weapon Minigun Energy Gun Medium Laser Ballistic Gun Minigun Launcher Grenade Launcher Impact Weapon Powered Hammer Build | -11 -10 -10 -10 -9 -8 -7 -6 -6 -6 ------- Run | Scr Mat Min Exi Min Mat Fac Fac Ext Cet Slots Evolved 8 | . . . . . 4 2 2 . . Power . | . . . . . . . . . . Propulsion 3 | . . . . . 2 1 . . . Utility 5 | . . . . . 2 1 2 . . Weapon . | . . . . . . . . . . Parts Attached 52 | 2 . 4 . 2 15 5 11 9 4 Power 2 | . . 1 . . 1 . . . . Engine . | . . . . . . . . . . Core 2 | . . 1 . . 1 . . . . Reactor . | . . . . . . . . . . Propulsion 12 | 2 . 2 . . 7 1 . . . Treads 2 | 2 . . . . . . . . . Leg . | . . . . . . . . . . Wheel . | . . . . . . . . . . Hover . | . . . . . . . . . . Flight 10 | . . 2 . . 7 1 . . . Utility 28 | . . 1 . 1 4 3 9 8 2 Device 16 | . . . . 1 2 . 6 6 1 Storage 1 | . . . . . . . 1 . . Processor 1 | . . . . . 1 . . . . Hackware 2 | . . . . . . 1 1 . . Protection 8 | . . 1 . . 1 2 1 2 1 Artifact . | . . . . . . . . . . Weapon 10 | . . . . 1 3 1 2 1 2 Energy Gun . | . . . . . . . . . . Energy Cannon . | . . . . . . . . . . Ballistic Gun 3 | . . . . . 3 . . . . Ballistic Cannon . | . . . . . . . . . . Launcher 3 | . . . . 1 . . 1 . 1 Special Weapon . | . . . . . . . . . . Impact Weapon 4 | . . . . . . 1 1 1 1 Slashing Weapon . | . . . . . . . . . . Piercing Weapon . | . . . . . . . . . . Special Melee Weapon . | . . . . . . . . . . Unidentified Prototypes 1 | . . . . 1 . . . . . Parts Lost 13 | . . . . 2 . . . 5 6 Power 1 | . . . . . . . . 1 . Propulsion 5 | . . . . . . . . 4 1 Utility 4 | . . . . 1 . . . . 3 Weapon 3 | . . . . 1 . . . . 2 Highest Loss Streak 6 | . . . . 2 . . . 4 6 To Critical Strikes . | . . . . . . . . . . Average Slot Usage (%) 65 | . 57 60 57 45 75 97 93 56 26 Core 4 | . . 12 14 1 9 7 6 1 . Treads 2 | . 28 2 . . . . . . . Flight 21 | . . 25 28 28 32 38 33 14 3 Device 5 | . . . . . 10 7 10 7 2 Processor 4 | . . . . . 3 7 6 6 6 Hackware 7 | . . . . . . 6 11 13 11 Protection 7 | . . 8 14 8 7 13 9 5 . Energy Gun 2 | . 28 10 . . . . . . . Ballistic Gun 3 | . . . . . 13 13 4 . . Impact Weapon 2 | . . . . . . 1 4 4 . Naked Turns . | . . . . . . . . . . Heaviest Build 23 | 3 3 8 8 8 15 17 23 23 8 Greatest Support 23 | 3 3 8 8 8 19 23 23 23 4 Greatest Overweight (x) 1 | . . . . . . . . 1 1 Average Overweight (x) . | . . . . . . . . . . Largest Inventory Capacity 10 | 8 5 5 5 5 5 5 10 10 5 Average Capacity 5 | 8 5 5 5 5 5 5 7 6 5 Most Carried 10 | 6 5 5 5 5 5 5 8 10 5 Average Carried 5 | 4 4 4 4 4 4 4 6 5 1 Final Capacity 10 | 5 5 5 5 5 5 5 10 5 5 Final Carried 8 | 4 5 5 5 5 5 5 8 5 1 Class Distribution -------------------- 33% | Hacker-Mutant 27% | Mutant 21% | Scavenger-Scout 11% | Hacker-Sprinter 3% | Hacker-Scout Dominant Class ---------------- Mutant | -10/Materials Mutant | -10/Mines Mutant | -10/Exiles Mutant | -9/Mines Scavenger-Scout | -8/Materials Scavenger-Scout | -7/Factory Hacker-Sprinter | -6/Factory Hacker-Mutant | -6/Extension Hacker-Mutant | -6/Cetus Resources | -11 -10 -10 -10 -9 -8 -7 -6 -6 -6 ----------- Run | Scr Mat Min Exi Min Mat Fac Fac Ext Cet Matter Collected 891 | 200 . 60 . 10 101 235 118 167 . Remotely . | . . . . . . . . . . Salvage Created 393 | . . . . 71 101 22 142 57 . Parts 23 | . . . . 3 12 2 4 2 . Haulers Intercepted . | . . . . . . . . . . Recyclers Shooed . | . . . . . . . . . . Parts Field Recycled . | . . . . . . . . . . Retrieved Matter . | . . . . . . . . . . Parts Self-Destructed . | . . . . . . . . . . Prevented . | . . . . . . . . . . Kills | -11 -10 -10 -10 -9 -8 -7 -6 -6 -6 ------- Run | Scr Mat Min Exi Min Mat Fac Fac Ext Cet Combat Hostiles Destroyed 16 | . . . . 8 4 . 3 1 . Melee 1 | . . . . . . . 1 . . Guns 4 | . . . . . 4 . . . . AOE 10 | . . . . 8 . . 2 . . Classes Destroyed 5 | . . . . 2 2 1 . . . Operator 1 | . . . . . . 1 . . . Swarmer 3 | . . . . . 3 . . . . Grunt 6 | . . . . 3 . . 3 . . Sentry 2 | . . . . . 1 . . 1 . Assembled 5 | . . . . 5 . . . . . Best Kill Streak 8 | . . . . 8 3 1 2 1 . Combat Bots Only 8 | . . . . 8 3 . 2 1 . Max Kills in Single Turn 3 | . . . . 3 1 1 2 1 . Gunslinging . | . . . . . . . . . . Exploded 3 | . . . . 3 . . 2 . . Melee 1 | . . . . . . . 1 . . Uniques/NPCs Destroyed . | . . . . . . . . . . Combat | -11 -10 -10 -10 -9 -8 -7 -6 -6 -6 -------- Run | Scr Mat Min Exi Min Mat Fac Fac Ext Cet Damage Taken 2218 | . 107 18 . 276 84 86 96 575 976 Core 977 | . 38 9 . 80 . . 20 150 680 Absorbed by Shields 42 | . . . . . . . . 42 . Redirected to Shielding 23 | . . . . . . . 23 . . Core Remaining (%) 87 | 100 . . . 49 100 100 . . . Volleys Fired 38 | . . . . 10 9 1 15 . 3 Largest 2 | . . . . 1 2 2 1 . 1 Hottest 50 | . . . . 30 50 50 39 . 39 Shots Fired 42 | . . . . 10 12 2 15 . 3 Gun 27 | . . . . . 12 2 13 . . Cannon . | . . . . . . . . . . Launcher 15 | . . . . 10 . . 2 . 3 Special . | . . . . . . . . . . Kinetic 27 | . . . . . 12 2 13 . . Thermal . | . . . . . . . . . . Explosive 15 | . . . . 10 . . 2 . 3 Electromagnetic . | . . . . . . . . . . Robot Hit Streak 15 | . . . . 2 8 10 15 . 4 Robot Miss Streak 2 | . . . . 2 1 . 1 . . Penetration Max . | . . . . . . . . . . Secondary Targets . | . . . . . . . . . . Shots Hit Robots 29 | . . . . 2 10 2 11 3 1 Core Hits 39 | . . . . 20 5 2 6 . 6 Critical Kills . | . . . . . . . . . . Critical Parts Destroyed 1 | . . . . . . . . 1 . Critical Strikes 1 | . . . . . . . . 1 . Smash 1 | . . . . . . . . 1 . Melee Attacks 15 | . . . . . . . 8 7 . Impact 15 | . . . . . . . 8 7 . Slashing . | . . . . . . . . . . Piercing . | . . . . . . . . . . Sneak Attacks . | . . . . . . . . . . Combat Hostiles . | . . . . . . . . . . Follow-up Attacks . | . . . . . . . . . . Damage Inflicted 1709 | . . . . 514 177 34 720 83 181 Guns 345 | . . . . . 177 34 134 . . Cannons . | . . . . . . . . . . Explosions 1151 | . . . . 514 . . 456 . 181 Melee 213 | . . . . . . . 130 83 . Ramming . | . . . . . . . . . . Kinetic 345 | . . . . . 177 34 134 . . Thermal 456 | . . . . . . . 456 . . Explosive 695 | . . . . 514 . . . . 181 Electromagnetic . | . . . . . . . . . . Impact 213 | . . . . . . . 130 83 . Slashing . | . . . . . . . . . . Piercing . | . . . . . . . . . . Highest Corruption 1 | . . . . . . . . . 1 Average Corruption 1 | . . . . . . . . . 1 Corruption Purged . | . . . . . . . . . . Corruption Blocked . | . . . . . . . . . . Overload Shots . | . . . . . . . . . . Overflow Damage 59 | . . . . . . . 29 30 . Projectiles . | . . . . . . . . . . Explosions 29 | . . . . . . . 29 . . Melee 30 | . . . . . . . . 30 . Knockbacks 1 | . . . . . . . 1 . . Impact 1 | . . . . . . . 1 . . Kinetic . | . . . . . . . . . . Secondary . | . . . . . . . . . . Self-Inflicted Damage 45 | . . . . 21 . . . . 24 Shots 3 | . . . . 2 . . . . 1 Rammed . | . . . . . . . . . . Targets Rammed . | . . . . . . . . . . Kicked . | . . . . . . . . . . Crushed . | . . . . . . . . . . Highest Temperature 50 | . 2 . . 6 50 15 24 21 . Average Temperature 9 | . 2 . . 2 17 9 5 8 . Received Heat Transfer 376 | . 78 . . 27 27 9 63 127 45 Siege Activations . | . . . . . . . . . . Robots Corrupted . | . . . . . . . . . . Combat Hostiles . | . . . . . . . . . . Parts Fried 1 | . . . . . . . . 1 . Impact Corruptions 1 | . . . . . . . . 1 . Robots Melted . | . . . . . . . . . . Combat Hostiles . | . . . . . . . . . . Parts Melted . | . . . . . . . . . . Heat Transferred 350 | . . . . . . . 350 . . Parts Sabotaged . | . . . . . . . . . . Parts Stolen . | . . . . . . . . . . Parts Stripped . | . . . . . . . . . . Power Chain Reactions . | . . . . . . . . . . Missiles Intercepted . | . . . . . . . . . . Alert | -11 -10 -10 -10 -9 -8 -7 -6 -6 -6 ------- Run | Scr Mat Min Exi Min Mat Fac Fac Ext Cet Peak Influence 622 | . 30 11 . 214 250 148 525 622 277 Initial 277 | . . 11 . . 75 113 51 256 277 Average 260 | . 14 11 . 125 139 93 333 464 234 Maximum Alert Level 2 | . . . . 1 1 . 2 2 1 Low Security (%) 47 | 100 100 100 . 88 89 100 36 . . Level 1 17 | . . . . 11 10 . 8 22 100 Level 2 35 | . . . . . . . 55 77 . Level 3 . | . . . . . . . . . . Level 4 . | . . . . . . . . . . Level 5 . | . . . . . . . . . . High Security . | . . . . . . . . . . Max Security . | . . . . . . . . . . Squads Dispatched 10 | . . . . . 2 1 3 3 1 Investigation 5 | . . . . . 1 . 1 2 1 Extermination . | . . . . . . . . . . Reinforcement 5 | . . . . . 1 1 2 1 . Assault . | . . . . . . . . . . Garrison . | . . . . . . . . . . Intercept . | . . . . . . . . . . Searches Triggered . | . . . . . . . . . . Construction Impeded . | . . . . . . . . . . Haulers Reinforced 1 | . . . . . . . 1 . . Active Scanning Responses . | . . . . . . . . . . Cargo Convoy Interrupts . | . . . . . . . . . . Stealth | -11 -10 -10 -10 -9 -8 -7 -6 -6 -6 --------- Run | Scr Mat Min Exi Min Mat Fac Fac Ext Cet Distress Signals 6 | . . . . . . . 2 3 1 Communications Jammed . | . . . . . . . . . . Distress Signals . | . . . . . . . . . . Times Spotted 92 | . 5 5 . 18 7 7 13 28 9 Peak Tracking Total 9 | . 4 3 . 8 5 5 7 9 8 Tactical Retreats 13 | . 1 . . . 1 3 4 4 . Traps | -11 -10 -10 -10 -9 -8 -7 -6 -6 -6 ------- Run | Scr Mat Min Exi Min Mat Fac Fac Ext Cet Traps Triggered 6 | . . . . . . 2 . 4 . Indirectly . | . . . . . . . . . . Trap Hack Attempts . | . . . . . . . . . . Triggered . | . . . . . . . . . . Disarmed . | . . . . . . . . . . Reprogrammed . | . . . . . . . . . . Reused . | . . . . . . . . . . Traps Extracted . | . . . . . . . . . . Installed . | . . . . . . . . . . Triggered . | . . . . . . . . . . Power Sources Rigged 1 | . . . . . . . 1 . . Machines | -11 -10 -10 -10 -9 -8 -7 -6 -6 -6 ---------- Run | Scr Mat Min Exi Min Mat Fac Fac Ext Cet Machines Disabled 9 | . . . . . . . 8 1 . Max in Single Turn 5 | . . . . . . . 5 1 . Garrison Access 2 | . . . . . 1 1 . . . Machines Sabotaged . | . . . . . . . . . . Garrisons Compromised . | . . . . . . . . . . Overloaded Fab Kills . | . . . . . . . . . . Hacking | -11 -10 -10 -10 -9 -8 -7 -6 -6 -6 --------- Run | Scr Mat Min Exi Min Mat Fac Fac Ext Cet Machines Accessed 25 | . . . 1 1 2 3 5 11 2 Terminals 20 | . . . . . 1 2 4 11 2 Fabricators 1 | . . . . . . . 1 . . Repair Stations . | . . . . . . . . . . Recycling Units . | . . . . . . . . . . Scanalyzers . | . . . . . . . . . . Garrison Access 2 | . . . . . 1 1 . . . Total Hacks 41 | . . . 1 1 3 7 7 18 4 Successful 23 | . . . 1 1 2 2 4 9 4 Failed 18 | . . . . . 1 5 3 9 . Catastrophic 4 | . . . . . . 2 1 1 . Database Lockouts . | . . . . . . . . . . Manual 13 | . . . 1 . 2 3 5 2 . Terminals 35 | . . . . . 2 5 6 18 4 Fabricators 1 | . . . . . . . 1 . . Repair Stations . | . . . . . . . . . . Recycling Units . | . . . . . . . . . . Scanalyzers . | . . . . . . . . . . Garrison Access 3 | . . . . . 1 2 . . . Terminal Hacks 17 | . . . 1 1 . 1 1 9 4 Record 3 | . . . . . . . . . 3 Open Door 9 | . . . . 1 . . . 7 1 Branch Access Points 2 | . . . . . . . 1 1 . Unreport Threat 1 | . . . . . . 1 . . . Locate Traps 1 | . . . . . . . . 1 . EX-Prototype ID Bank 1 | . . . 1 . . . . . . Fabricator Hacks . | . . . . . . . . . . Repair Station Hacks . | . . . . . . . . . . Recycling Unit Hacks . | . . . . . . . . . . Scanalyzer . | . . . . . . . . . . Garrison Access Hacks 2 | . . . . . 1 1 . . . Seal Access 2 | . . . . . 1 1 . . . Unauthorized Hacks 4 | . . . . . 1 . 3 . . Terminals 3 | . . . . . 1 . 2 . . Assimilate 3 | . . . . . 1 . 2 . . Fabricators 1 | . . . . . . . 1 . . Overload 1 | . . . . . . . 1 . . Repair Stations . | . . . . . . . . . . Recycling Units . | . . . . . . . . . . Scanalyzers . | . . . . . . . . . . Garrison Access . | . . . . . . . . . . Data Cores Recovered . | . . . . . . . . . . Used . | . . . . . . . . . . Hacking Detections 15 | . . . . . 1 2 3 7 2 Full Trace Events 4 | . . . . . 1 . . 2 1 Feedback Events 1 | . . . . . . . . . 1 Corruption 1 | . . . . . . . . . 1 Feedback Blocked . | . . . . . . . . . . Robot Schematics Acquired . | . . . . . . . . . . Robots Built . | . . . . . . . . . . Authchips . | . . . . . . . . . . Time . | . . . . . . . . . . Total Robot Build Rating . | . . . . . . . . . . Part Schematics Acquired . | . . . . . . . . . . Parts Built . | . . . . . . . . . . Authchips . | . . . . . . . . . . Time . | . . . . . . . . . . Total Part Build Rating . | . . . . . . . . . . Parts Repaired . | . . . . . . . . . . Time . | . . . . . . . . . . Parts Recycled . | . . . . . . . . . . Recycled Matter . | . . . . . . . . . . Retrieved Matter . | . . . . . . . . . . Retrieved Components . | . . . . . . . . . . Parts Scanalyzed . | . . . . . . . . . . Part Schematics Acquired . | . . . . . . . . . . Parts Damaged . | . . . . . . . . . . Bothacking | -11 -10 -10 -10 -9 -8 -7 -6 -6 -6 ------------ Run | Scr Mat Min Exi Min Mat Fac Fac Ext Cet Used RIF Installer . | . . . . . . . . . . Robots Hacked . | . . . . . . . . . . Non-combat . | . . . . . . . . . . Combat . | . . . . . . . . . . Robot Hacks Applied . | . . . . . . . . . . Relay Couplers Released . | . . . . . . . . . . Fabnet Peak Effective % . | . . . . . . . . . . Robots Rewired . | . . . . . . . . . . Allies Hacked . | . . . . . . . . . . Hacks Repelled . | . . . . . . . . . . Allies | -11 -10 -10 -10 -9 -8 -7 -6 -6 -6 -------- Run | Scr Mat Min Exi Min Mat Fac Fac Ext Cet Total Allies 10 | . . . . . . . 1 9 . Largest Group 5 | . . . . . . . 1 5 . Highest-Rated Group 249 | . . . . . . . 10 249 . Highest-Rated Ally 159 | . . . . . . . 10 159 . Total Orders 5 | . . . . . . . . 1 4 EXPLORE 5 | . . . . . . . . 1 4 Ally Attacks 89 | . . . . . . . . 85 4 Total Damage 1506 | . . . . . . . . 1506 . Kills 14 | . . . . . . . . 14 . Allies Corrupted . | . . . . . . . . . . Allies Melted 2 | . . . . . . . . 2 . Intel | -11 -10 -10 -10 -9 -8 -7 -6 -6 -6 ------- Run | Scr Mat Min Exi Min Mat Fac Fac Ext Cet Robot Analysis Total . | . . . . . . . . . . Derelict Logs Recovered . | . . . . . . . . . . Drone Launches 16 | . . . . . . . . 12 4 Drone Recoveries . | . . . . . . . . . . Exploration | -11 -10 -10 -10 -9 -8 -7 -6 -6 -6 ------------- Run | Scr Mat Min Exi Min Mat Fac Fac Ext Cet Turns Passed 1552 | 4 124 120 78 98 141 155 234 503 95 Spaces Moved 2952 | 1 178 114 207 173 274 479 537 840 149 Core 245 | 1 178 3 . . . . . . 63 Treads . | . . . . . . . . . . Legs . | . . . . . . . . . . Wheels . | . . . . . . . . . . Hover . | . . . . . . . . . . Flight 2707 | . . 111 207 173 274 479 537 840 86 Fastest Speed 25 | 50 50 37 37 37 27 25 25 25 40 Average Speed 32 | 50 50 37 37 37 31 25 25 33 46 Slowest Speed 120 | 50 50 50 37 37 34 25 25 120 120 Overloaded Moves . | . . . . . . . . . . Propulsion Burnouts . | . . . . . . . . . . Robots Hopped 22 | . . 1 . 2 2 6 1 10 . Cave-ins Triggered . | . . . . . . . . . . Exploration Rate (%) 40 | 2 32 38 60 46 32 17 12 86 77 Regions Visited 9 Branch Regions 5 Pre-discovered Areas . | . . . . . . . . . . Known Exits Taken 2 | . . . . . . . 1 1 . Unknown Exits Taken 7 | 1 1 1 1 1 1 1 . . . Scrap Searched . | . . . . . . . . . . Spaces Dug 6 | . . . . . . . 5 1 . Terrain Destroyed 208 | . . . . 63 . . 125 1 19 Melee 6 | . . . . . . . 5 1 . Projectile . | . . . . . . . . . . AOE 202 | . . . . 63 . . 120 . 19 Terrain Rammed . | . . . . . . . . . . Walls Destroyed . | . . . . . . . . . . Machines Disabled . | . . . . . . . . . . Actions | -11 -10 -10 -10 -9 -8 -7 -6 -6 -6 --------- Run | Scr Mat Min Exi Min Mat Fac Fac Ext Cet Total 3456 | 6 215 190 208 194 317 505 606 1043 172 Wait 266 | . 25 68 . 11 13 8 26 101 14 Move 2902 | . 177 111 206 169 269 466 534 821 149 Hop 19 | . . 1 . 1 2 6 1 8 . Pick Up 19 | . 7 2 1 . 1 3 3 2 . Fast Attach 18 | . . 2 . 1 6 2 5 2 . Attach 21 | 2 . 2 . 1 4 1 1 6 4 Detach 13 | . . . . 1 2 . 3 6 1 Swap 13 | . . . . . 5 2 5 1 . Drop 39 | 4 6 4 1 . 6 3 4 10 1 Fire 38 | . . . . 10 9 1 15 . 3 Melee 15 | . . . . . . . 8 7 . Ram . | . . . . . . . . . . Kick . | . . . . . . . . . . Crush . | . . . . . . . . . . Escape Stasis 85 | . . . . . . 13 . 72 . Rewire 7 | . . . . . . . . 7 . Trap 1 | . . . . . . . 1 . . Miscellaneous . | . . . . . . . . . . Route ------- -11/Scrapyard -10/Materials -10/Mines -10/Exiles (discovered 2 exits: *Min x2) -9/Mines (discovered 2 exits: *Mat x2) -8/Materials -7/Factory -6/Factory (discovered 4 exits: *Low x2 / *Ext x2) -6/Extension (discovered 3 exits: [*Fac x2] / *Cet) -6/Cetus (discovered 1 exit: [*Fac]) History --------- Turn | Location | Event 5 | -11/Scrapyard | Discovered new exit (range 0) 5 | -11/Scrapyard | Entered Materials 87 | -10/Materials | Discovered new exit (range 8) 91 | -10/Materials | Met 8R-AWN 129 | -10/Materials | Entered Mines 130 | -10/Mines | Followed 8R-AWN into the Mines 244 | -10/Mines | Discovered new exit (range 5) 249 | -10/Mines | Entered Exiles 255 | -10/Exiles | Discovered new exit (range 15) 259 | -10/Exiles | Welcomed by 8R-AWN 265 | -10/Exiles | Met EX-HEX 275 | -10/Exiles | Met EX-BIN 279 | -10/Exiles | Aligned with FarCom system 279 | -10/Exiles | Given EX-Vault access code 288 | -10/Exiles | Opened EX-Vault 291 | -10/Exiles | Found PSU Rigger 300 | -10/Exiles | Warned to stay clear of 0b10 Research branches 310 | -10/Exiles | Met EX-DEC 311 | -10/Exiles | Build established: Mutant 324 | -10/Exiles | Discovered new exit (range 11) 327 | -10/Exiles | Left Exiles lab with PSU Rigger 327 | -10/Exiles | Entered Mines 328 | -9/Mines | Assembled infested the area 333 | -9/Mines | Assisted by a Guerilla fighting off Assembled 397 | -9/Mines | Destroyed 8 combat bots 402 | -9/Mines | Core integrity fell below 50% 416 | -9/Mines | Discovered new exit (range 15) 419 | -9/Mines | Found the Drone Emporium 421 | -9/Mines | Found Prototype Device 421 | -9/Mines | Identified Bomb Drone Bay 425 | -9/Mines | Discovered new exit (range 12) 425 | -9/Mines | Entered Materials 425 | -8/Materials | Evolved 4 slots: Propulsion x2, Utility x2 534 | -8/Materials | Discovered new exit (range 16) 566 | -8/Materials | Entered Factory 566 | -7/Factory | Evolved 2 slots: Propulsion x1, Utility x1 711 | -7/Factory | Discovered new exit (range 15) 721 | -7/Factory | Entered another Factory area 721 | -6/Factory | Evolved 2 slots: Utility x2 821 | -6/Factory | Identified exit to Lower Caves 821 | -6/Factory | Identified exit to Extension 955 | -6/Factory | Entered Extension 964 | -6/Extension | Rescued a captive Derelict 965 | -6/Extension | Rescued a captive Derelict 1005 | -6/Extension | Rescued a captive Derelict 1014 | -6/Extension | Rescued a captive Derelict 1014 | -6/Extension | Rescued a captive Derelict 1022 | -6/Extension | Spotted B-75 Beast 1024 | -6/Extension | Rescued A7 1044 | -6/Extension | Spotted B-75 Beast 1079 | -6/Extension | Lost 4 parts (1p3n) 1091 | -6/Extension | Discovered new exit (range 3) 1122 | -6/Extension | Discovered new exit (range 20) 1122 | -6/Extension | Discovered new exit (range 19) 1257 | -6/Extension | Identified exit to Cetus 1262 | -6/Extension | Rescued a captive Derelict 1306 | -6/Extension | Extracted ID and sensor layout for unrecognized location from A7's data core 1338 | -6/Extension | Rescued a captive Derelict 1338 | -6/Extension | Rescued a captive Derelict 1345 | -6/Extension | Build established: Hacker-Mutant 1458 | -6/Extension | Entered Cetus 1463 | -6/Cetus | Spotted Cetus Guard 1472 | -6/Cetus | Spotted Cetus Guard 1476 | -6/Cetus | Spotted Cetus Guard 1477 | -6/Cetus | Spotted Cetus Guard 1495 | -6/Cetus | Discovered new exit (range 20) 1512 | -6/Cetus | Core integrity fell below 50% 1539 | -6/Cetus | Core integrity fell below 20% 1553 | -6/Cetus | Destroyed by S-27 Virus with Autogun Last Messages --------------- in 2241. Nothing unique about this revision suggests why it was targeted, but confirmation is impossible without the missing data. Other [Revision Series] records seem to have remained untouched. >>Query(Dr. REDACTED) REDACTED. Feedback: System corruption (+1%). 01525_ ALERT: Suspicious activity at Terminal C001. Dispatching Investigation squad. 01528_ Connecting with Cetus Terminal... 01533_ C-30 ARC bursts open, deploying its payload. 01533_ S-27 Virus unfolds itself. 01535_ Slug penetrates Machine. 01535_ Machine disabled. 01537_ Hacking Suite destroyed. 01537_ Penetrated by Slug. 01540_ Connecting with Cetus Terminal... >>Open(Door) Sealed Heavy Doors opened. 01540_ C-30 ARC bursts open, deploying its payload. 01540_ P-60 Hacker unfolds itself. Map ----- +----------------------------------------------------+ | ?????????????????????????????????????????????????? | | ?????????????????????????????????????????????????? | | ??????????#?###########??????????????????????????? | | ##???????#""""" """ """""##??????????????????????? | | #???????# " """"""" " #""?????????????????????? | | ######??#"""""""""""""""#"######????????????????? | | ####""""" """ """""#""""""#????????????????? | | # ##""""""" """""""#" ""#????????????????? | | # ### ##""" " " """#T ""#????????????????? | | # # #" """ """ "#" ""#????????????????? | | # ## ############ ??? | | / Y +%" ??? | | / Y g+" gg ??? | | / Y " + ???????? | | # ##" "%" #????????????????? | | # #" "" """" ""#T #????????????????? | | ######++############ #######??????????? | | # ## ####" " ""# #??????????? | | #######??###" """# " #??????????? | | ?????????#" " ""# """ "" " " #??????????? | | ?????????###" """# " " " """ #??????????? | | ?????????#" "### """""" " #??????????? | | ?????????#" """"#" """"""""" #??????????? | | ?????????#" T"""#s"""""""""" "#??????????? | | ?????????#" """"#"ps """"""""""""#??????????? | | ?????????### "### ss@""""""" "#??????????? | | ?????????# """"#" """""""? ???????????? | | ?????????#" " T"""#""""""""" ? #??????????? | | ?????????#" """"#" " " ???????????????? | | ?????????#" " " #"### " """"""??????????????? | | ?????????# #"""# """ ????????????????? | | ?????????#""" """#"""# " ???????????????? | | ?????????#########?###############???????????????? | | ?????????????????????????????????????????????????? | | ?????????????????????????????????????????????????? | | ?????????????????????????????????????????????????? | | ?????????????????????????????????????????????????? | | ?????????????????????????????????????????????????? | | ?????????????????????????????????????????????????? | | ?????????????????????????????????????????????????? | | ?????????????????????????????????????????????????? | | | | | | | | | | | | | | | | | | | +----------------------------------------------------+ Best States ------------- Heat Dissipation 56 Energy Generation 15 Energy Capacity 160 Matter Stores 300 Matter Capacity 300 Sight Range 20 Terrain Scan Range 14 Terrain Scan Density 10 Cloak Strength 2 Power Amplification 20 Armor Coverage 150 Propulsion Shielding 66 Evasion (%) 65 Offensive Hacking 20 Item Schematics ----------------- None Robot Schematics ------------------ None Fabricated ------------ Nothing Alien Tech Used ----------------- None Achievements -------------- None Challenges ------------ None Game ------ Seed DiametricReactionNukerbomber Manual? 0 Play Time 00:45:53 Cumulative 135.7 hours Start 2022.04.30 @ 23:59:31 End 2022.05.01 @ 00:47:42 Sessions 1 Manual Loads 0 Difficulty Rogue Special Mode None Game No. 183 Rogue 182 Adventurer 0 Explorer 1 Win Type - Total 5 Types 5/0/0/0/0/0/0/0/0 Lore% 59 Gallery% 60 Achievement% 50 Wizard Run 0 Options --------- ASCII 1 Keyboard 0 Movement Vi Keybinds 0 Fullscreen 1 Font 18/SmallcapsGlow Map View 76x50 Tactical HUD 1 Map Filters NONE Filters NONE Steam 1 RUN: 4b64659a-256d-4ad8-9fd0-b12705a7ec1a